bitfinex-derivatives/quotes_ETHF0:USTF0_20250917
["timestamp","ask_amount","ask_price","bid_price","bid_amount"]
[1758134592781,3.2078,4457.5,4456.2,3.2078]
[1758134592985,3.2078,4457.5,4455.7,0.269]
[1758134592986,3.2078,4457.5,4456.7,3.2078]
[1758134593191,3.4768,4458.1,4457.1,3.2078]
[1758134593491,3.4768,4458.1,4456.5,3.2078]
[1758134593790,3.2078,4457.6,4456.4,3.2078]
[1758134593982,0.269,4457.5,4456.4,3.2078]
[1758134594186,0.269,4457.5,4455.8,3.2078]
[1758134594187,3.2078,4456.9,4455.8,3.2078]
[1758134594388,3.4768,4456.9,4455.8,3.2078]
[1758134594590,3.4768,4456.9,4455.3,0.44889852]
[1758134594591,3.2078,4455.9,4455.3,0.44889852]
[1758134594890,3.2078,4455.4,4455.3,0.44889852]
[1758134595385,7.2078,4455.4,4455.3,0.44889852]
[1758134595890,7.4768,4455.4,4453.0,3.2078]
[1758134596087,3.2078,4454.4,4453.0,3.2078]
[1758134596290,0.269,4454.3,4452.9,3.2078]
[1758134596887,3.2078,4453.9,4452.9,3.2078]
[1758134597098,3.2078,4453.2,4451.9,3.2078]
[1758134597388,0.269,4453.1,4452.4,3.2078]
[1758134597790,0.269,4453.1,4451.8,3.2078]
[1758134598192,0.269,4453.1,4452.5,3.2078]
[1758134599195,3.2078,4454.5,4453.0,3.2078]
[1758134599387,3.2078,4454.5,4453.0,3.4768]
[1758134599586,3.2078,4454.0,4453.0,3.2078]
[1758134599788,0.269,4453.9,4453.0,3.2078]
[1758134600185,0.269,4453.9,4452.4,3.2078]
[1758134600489,0.269,4453.9,4453.0,3.2078]
[1758134601095,0.269,4453.9,4452.5,3.2078]
[1758134601292,0.269,4453.9,4453.1,3.2078]
[1758134601491,3.4768,4454.0,4453.1,3.2078]
[1758134601893,3.4768,4454.0,4452.6,3.2078]
[1758134602496,3.2078,4452.8,4451.6,3.2078]
[1758134602803,0.269,4452.7,4451.6,3.2078]
[1758134602996,3.2078,4452.8,4451.6,3.2078]
[1758134603296,0.269,4452.7,4451.6,3.2078]
[1758134603497,0.269,4452.7,4452.1,3.2078]
[1758134604991,3.2078,4452.2,4449.5,3.2078]
[1758134605187,3.2078,4451.0,4449.5,0.17577012]
[1758134605396,3.2078,4451.0,4449.6,0.22464]
[1758134605700,3.2078,4451.0,4449.9,3.2078]
[1758134606293,3.2078,4451.0,4449.6,3.2078]
[1758134606599,3.2078,4450.5,4449.7,0.269]
[1758134607093,3.2078,4451.2,4449.9,3.2078]
[1758134607298,3.2078,4451.2,4450.4,3.2078]
[1758134607900,3.2078,4451.2,4450.1,0.269]
[1758134608097,3.2078,4451.2,4450.3,3.2078]
[1758134608598,3.2078,4451.2,4450.6,0.40423]
[1758134608796,3.2078,4451.2,4450.4,0.0224]
[1758134609099,3.2078,4451.2,4450.7,0.40422]
[1758134609400,3.2078,4451.2,4450.4,0.0224]
[1758134609594,3.2078,4450.7,4450.4,0.0224]
[1758134609794,0.269,4450.6,4449.0,3.2078]
[1758134609996,3.2078,4449.9,4448.9,3.39127855]
[1758134610400,3.2078,4450.6,4449.6,3.2078]
[1758134610594,3.2078,4450.6,4449.4,3.61214]
[1758134610789,3.2078,4450.6,4449.4,3.2078]
[1758134610999,3.2078,4450.6,4449.7,0.40431]
[1758134611200,3.2078,4450.6,4449.4,3.2078]
[1758134611898,3.2078,4450.6,4449.6,0.40432]
[1758134612089,3.2078,4450.6,4449.4,3.2078]
[1758134612290,3.2078,4449.5,4447.7,0.40449]
[1758134612607,3.2078,4450.2,4449.2,3.2078]
[1758134612800,3.2078,4449.3,4448.0,3.2078]
[1758134613191,7.2078,4449.3,4448.0,3.79440444]
[1758134613396,3.2078,4449.3,4448.3,0.40444]
[1758134613794,3.2078,4449.3,4448.4,0.0213]
[1758134614000,3.2078,4448.7,4448.4,0.0213]
[1758134614902,3.2078,4449.2,4448.4,0.42573]
[1758134615091,3.2078,4449.2,4448.4,0.0213]
[1758134616899,3.2078,4449.2,4448.5,0.40442]
[1758134617102,3.2078,4450.2,4449.1,3.2078]
[1758134617307,3.2078,4450.2,4448.9,0.40438]
[1758134617604,3.2078,4450.2,4449.2,0.40435]
[1758134617805,3.2078,4450.2,4448.9,0.18345836]
[1758134618106,0.269,4450.1,4449.0,3.2078]
[1758134618500,3.2078,4450.2,4449.0,3.2078]
[1758134618799,3.2078,4450.2,4449.0,3.61217]
[1758134618999,3.2078,4450.2,4449.0,3.2078]
[1758134619192,3.2078,4449.7,4449.0,3.2078]
[1758134619404,3.2078,4450.2,4449.2,0.40435]
[1758134620000,3.2078,4449.4,4448.8,0.269]
[1758134620197,0.269,4449.3,4448.4,0.0213]
[1758134620394,3.2078,4448.7,4448.4,0.0213]
[1758134620607,3.4768,4448.7,4448.4,0.0213]
[1758134620803,4.0,4448.6,4447.2,0.40454]
[1758134621098,3.2078,4447.6,4446.4,3.2078]
[1758134621305,3.2078,4447.0,4445.1,3.2078]
[1758134621499,0.269,4446.9,4445.7,0.40468]
[1758134621694,0.269,4446.9,4445.6,3.2078]
[1758134622100,3.2078,4447.0,4446.1,3.2078]
[1758134622403,3.4768,4447.8,4446.7,3.2078]
[1758134622602,3.2078,4447.8,4446.7,3.2078]
[1758134622799,3.2078,4448.9,4448.4,0.40443]
[1758134622994,3.2078,4448.9,4448.2,0.40444]
[1758134623201,0.269,4449.7,4448.8,3.2078]
[1758134623500,3.2078,4450.4,4448.8,3.2078]
[1758134623695,0.269,4449.9,4449.3,3.2078]
[1758134623896,0.269,4449.9,4448.7,3.2078]
[1758134624101,0.269,4449.9,4448.2,0.44994696]
[1758134624102,3.2078,4449.8,4448.4,0.40443]
[1758134624305,3.2078,4449.8,4448.2,3.61225]
[1758134624602,0.269,4449.7,4448.3,0.1798]
[1758134624800,3.2078,4449.0,4448.3,0.1798]
[1758134625107,3.4768,4449.0,4448.3,0.1798]
[1758134625303,3.2078,4451.1,4448.5,3.2078]
[1758134625605,3.2078,4454.3,4452.0,10.10271]
[1758134625805,3.2078,4455.4,4453.9,0.40393]
[1758134626102,3.2078,4456.1,4454.7,3.2078]
[1758134626307,0.269,4456.4,4454.7,3.2078]
[1758134626605,3.4768,4456.4,4455.2,3.2078]
[1758134626906,3.4768,4456.4,4454.4,3.2078]
[1758134626907,0.269,4456.4,4454.4,3.2078]
[1758134627102,3.2078,4455.7,4453.7,1.80343936]
[1758134627303,3.2078,4455.2,4453.0,3.2078]
[1758134627501,0.273,4455.1,4453.5,3.2078]
[1758134627901,3.2078,4455.2,4453.2,3.2078]
[1758134628102,3.2078,4455.7,4454.1,0.40392]
[1758134628297,0.274,4455.4,4454.3,3.2078]
[1758134628810,0.274,4456.4,4455.1,0.40382]
[1758134629009,0.274,4456.3,4455.8,3.2078]
[1758134629198,3.2078,4456.0,4454.6,3.2078]
[1758134629403,3.2078,4455.9,4453.6,3.2078]
[1758134629603,0.274,4455.8,4454.1,3.2078]
[1758134629803,3.2078,4455.7,4454.1,3.2078]
[1758134630102,3.2078,4455.2,4453.4,3.2078]
[1758134630307,0.274,4455.1,4453.4,3.2078]
[1758134630903,3.2078,4454.7,4452.9,3.2078]
[1758134631111,3.2078,4455.2,4454.1,3.2078]
[1758134631407,0.273,4455.1,4454.1,3.2078]
[1758134632003,0.273,4455.1,4453.6,3.2078]
[1758134632200,3.2078,4455.2,4454.2,3.2078]
[1758134632405,0.273,4455.1,4454.2,3.2078]
[1758134633009,3.2078,4455.2,4454.2,3.2078]
[1758134633210,0.273,4455.1,4454.2,3.2078]
[1758134633507,0.273,4455.1,4453.3,3.2078]
[1758134633706,3.2078,4455.2,4453.2,3.2078]
[1758134633907,3.2078,4455.2,4453.8,3.2078]
[1758134633908,0.273,4455.1,4453.8,3.2078]
[1758134634104,0.273,4455.1,4452.9,3.2078]
[1758134634309,3.2078,4454.7,4452.9,3.2078]
[1758134634601,3.2078,4454.7,4453.1,3.2078]
[1758134634911,3.2078,4453.7,4452.6,3.2078]
[1758134635112,0.273,4453.6,4452.6,3.2078]
[1758134635510,0.273,4453.5,4452.7,0.40404]
[1758134635712,0.273,4453.4,4452.7,0.40404]
[1758134636011,3.2078,4454.2,4453.1,3.61181]
[1758134636618,0.272,4454.1,4453.1,3.61181]
[1758134636910,3.2078,4454.8,4453.7,0.40395]
[1758134637109,3.2078,4454.8,4454.1,3.2078]
[1758134637307,3.2078,4456.1,4454.6,3.2078]
[1758134637506,3.2078,4456.1,4455.1,3.2078]
[1758134637810,32.342,4458.0,4455.9,0.40375]
[1758134637811,0.272,4457.4,4455.9,0.40375]
[1758134638011,35.5498,4458.0,4456.9,3.2078]
[1758134638310,0.273,4457.9,4456.9,3.2078]
[1758134638513,35.5498,4458.0,4457.0,0.40366]
[1758134638706,0.272,4457.9,4456.9,3.2078]
[1758134639616,3.2078,4457.3,4456.3,3.2078]
[1758134639808,0.272,4457.2,4456.3,3.2078]
[1758134640511,3.2078,4456.7,4455.5,0.18077037]
[1758134640704,3.2078,4456.0,4455.1,0.272]
[1758134640910,3.2078,4456.0,4454.3,3.2078]
[1758134641109,3.2078,4456.0,4454.8,3.2078]
[1758134641816,3.4798,4456.0,4454.8,3.2078]
[1758134642010,3.4798,4456.0,4452.8,1.01009]
[1758134642011,3.4798,4456.0,4454.3,3.2078]
[1758134642205,3.2078,4455.3,4454.3,3.2078]
[1758134642406,0.272,4455.2,4453.4,3.2078]
[1758134643016,3.2078,4454.8,4453.4,3.2078]
[1758134643916,0.271,4454.8,4454.0,3.2078]
[1758134644308,3.2078,4455.3,4454.0,3.2078]
[1758134644619,0.271,4455.0,4454.0,3.2078]
[1758134645119,3.2078,4455.2,4453.7,3.2078]
[1758134645320,3.2078,4455.2,4453.5,3.2078]
[1758134645321,0.271,4454.9,4453.5,3.2078]
[1758134645617,0.271,4454.9,4454.1,3.2078]
[1758134645812,0.271,4454.9,4453.5,3.2078]
[1758134646013,3.2078,4454.7,4453.5,3.2078]
[1758134646706,73.132,4455.9,4453.5,3.2078]
[1758134646707,3.2078,4455.2,4453.5,3.2078]
[1758134646913,0.271,4455.1,4454.0,3.2078]
[1758134647217,0.271,4455.1,4453.4,3.2078]
[1758134647417,0.271,4455.1,4453.5,0.40397]
[1758134647614,0.271,4455.1,4453.4,3.2078]
[1758134647919,3.2078,4454.1,4453.4,3.2078]
[1758134648217,0.271,4454.0,4453.4,3.2078]
[1758134648517,73.132,4455.9,4451.6,2.76402414]
[1758134648518,3.2078,4454.1,4453.1,3.2078]
[1758134648718,0.27,4454.0,4453.1,3.2078]
[1758134649319,3.2078,4453.5,4452.6,3.2078]
[1758134649519,0.27,4453.4,4452.6,3.2078]
[1758134650021,0.27,4453.4,4452.1,3.2078]
[1758134650720,3.2078,4453.5,4452.1,3.2078]
[1758134650921,0.27,4453.4,4452.1,3.2078]
[1758134651311,3.2078,4453.5,4452.1,3.2078]
[1758134651522,3.2078,4452.8,4452.1,3.2078]
[1758134651719,0.27,4452.7,4451.5,3.2078]
[1758134651923,3.2078,4451.6,4450.5,3.2078]
[1758134652112,0.27,4451.5,4450.5,3.2078]
[1758134652318,3.2078,4450.9,4450.0,3.2078]
[1758134652618,0.27,4450.8,4449.0,3.2078]
[1758134652822,3.2078,4450.2,4449.0,3.2078]
[1758134653013,0.27,4450.1,4449.0,3.2078]
[1758134653214,0.27,4450.1,4448.5,3.61222]
[1758134653414,3.2078,4449.6,4448.3,0.1798]
[1758134653619,3.2078,4449.5,4448.3,0.1798]
[1758134653924,3.2078,4449.5,4448.4,0.0224]
[1758134654120,3.2078,4448.5,4448.4,0.0224]
[1758134654320,3.2078,4448.5,4446.6,3.2078]
[1758134654622,0.27,4448.8,4447.4,3.2078]
[1758134654925,3.2078,4448.0,4446.9,3.2078]
[1758134655315,32.335,4451.3,4447.4,0.40452]
[1758134655316,3.2078,4448.6,4447.4,0.40452]
[1758134655518,3.2078,4449.4,4448.3,3.2078]
[1758134655715,3.2078,4449.5,4448.5,3.2078]
[1758134655922,0.27,4450.0,4449.2,3.2078]
[1758134656115,3.2078,4450.2,4449.2,3.2078]
[1758134656918,0.27,4450.6,4449.2,3.2078]
[1758134657113,0.27,4450.6,4449.8,3.2078]
[1758134658225,3.2078,4450.1,4449.3,0.1798]
[1758134658526,0.269,4450.0,4449.7,0.0224]
[1758134658721,0.269,4450.0,4449.3,0.1798]
[1758134658927,3.2078,4449.4,4447.8,3.2078]
[1758134659229,3.2078,4450.0,4448.3,3.2078]
[1758134659530,3.2078,4450.8,4449.4,3.2078]
[1758134660228,0.269,4451.1,4449.9,3.2078]
[1758134660827,0.269,4451.1,4450.6,3.2078]
[1758134661028,0.269,4451.1,4450.1,3.2078]
[1758134661220,0.269,4451.1,4449.9,3.2078]
[1758134661927,0.269,4451.1,4450.0,0.0224]
[1758134662426,0.269,4451.1,4450.1,0.1797]
[1758134663022,3.2078,4451.3,4450.4,3.2078]
[1758134663328,3.2078,4451.3,4450.1,0.1797]
[1758134663524,0.269,4451.2,4450.1,0.1797]
[1758134664329,3.2078,4450.4,4450.1,0.1797]
[1758134665620,3.2078,4450.4,4448.7,3.2078]
[1758134666028,0.22474,4450.3,4448.7,3.2078]
[1758134666227,3.2078,4449.7,4448.7,3.2078]
[1758134666435,0.269,4449.6,4448.7,3.2078]
[1758134666630,0.22476,4449.5,4448.7,3.2078]
[1758134666831,40.8,4449.4,4448.7,3.2078]
[1758134667631,0.269,4449.6,4448.7,3.2078]
[1758134668122,41.02476,4449.5,4448.7,3.2078]
[1758134668327,3.2078,4449.1,4447.1,3.2078]
[1758134668523,3.2078,4448.6,4447.1,3.2078]
[1758134668728,0.269,4448.5,4447.1,3.2078]
[1758134668927,0.269,4448.5,4447.3,0.40453]
[1758134669131,0.269,4448.5,4447.1,3.2078]
[1758134669332,3.2078,4447.7,4447.1,3.2078]
[1758134669528,3.4768,4447.7,4447.2,0.1798]
[1758134669928,32.357,4450.6,4447.2,7.3876]
[1758134669929,0.269,4448.2,4447.2,7.3876]
[1758134670229,3.2078,4448.4,4447.2,3.3876]
[1758134670426,0.269,4448.7,4447.2,3.79214]
[1758134670630,0.269,4448.7,4447.4,0.40452]
[1758134670831,0.269,4448.7,4447.7,3.2078]
[1758134671032,0.269,4448.7,4447.7,3.61229]
[1758134671331,0.269,4448.7,4445.9,2.0233]
[1758134671332,3.2078,4446.8,4442.4,3.2078]
[1758134671527,4.0,4448.6,4442.4,0.17919561]
[1758134671528,3.2078,4442.9,4442.4,0.17919561]
[1758134671835,3.2078,4442.9,4442.3,3.2078]
[1758134672127,3.2078,4442.4,4441.2,3.2078]
[1758134672334,3.2078,4441.6,4440.4,0.15579941]
[1758134672524,3.2078,4441.6,4439.7,0.022481]
[1758134672525,3.2078,4440.6,4439.7,0.51200844]
[1758134672833,0.284,4440.7,4440.2,3.2078]
[1758134673029,3.2078,4440.9,4440.2,3.2078]
[1758134673227,3.2078,4441.0,4439.8,1.06469201]
[1758134673427,3.2078,4441.0,4439.8,3.2142]
[1758134673634,3.2078,4441.0,4440.3,3.2078]
[1758134673826,3.2078,4441.5,4440.3,3.2078]
[1758134674233,3.2078,4440.9,4440.1,0.283]
[1758134674536,3.2078,4440.9,4439.8,0.0064]
[1758134674838,3.2078,4440.9,4440.3,0.40517]
[1758134675032,3.2078,4441.5,4440.5,3.2078]
[1758134675233,3.2078,4440.9,4440.0,0.0913]
[1758134675725,32.379,4442.6,4440.0,0.0913]
[1758134675726,3.2078,4440.4,4440.0,0.0913]
[1758134676129,3.2078,4441.0,4440.0,0.0913]
[1758134676330,3.2078,4441.0,4440.0,3.5861]
[1758134676535,3.2078,4441.0,4440.0,0.3783]
[1758134676730,3.2078,4441.0,4440.1,4.286]
[1758134676926,3.2078,4441.0,4440.0,0.0913]
[1758134677130,3.2078,4441.0,4440.2,3.2078]
[1758134677331,3.2078,4441.0,4440.0,0.0913]
[1758134677635,3.2078,4440.9,4440.0,0.0913]
[1758134677834,0.286,4441.0,4440.5,3.2078]
[1758134678133,32.386,4443.5,4440.6,0.40514]
[1758134678134,3.2078,4442.4,4440.6,0.40514]
[1758134678431,3.2078,4441.8,4440.0,0.0913]
[1758134678639,3.2078,4441.8,4440.4,3.2078]
[1758134678836,3.2078,4442.3,4441.4,3.2078]
[1758134679038,0.40503,4441.9,4440.9,3.2078]
[1758134679238,3.4948,4442.3,4441.4,3.2078]
[1758134679432,3.2078,4442.3,4441.4,3.2078]
[1758134679629,3.2078,4442.3,4440.6,0.287]
[1758134679829,0.40507,4441.4,4440.3,3.2078]
[1758134680038,0.40512,4440.9,4440.2,0.161]
[1758134680333,3.2078,4440.5,4440.0,0.0913]
[1758134680839,3.2078,4441.4,4440.4,3.61296]
[1758134681142,3.2078,4440.8,4440.0,0.0913]
[1758134681328,0.40513,4440.9,4440.0,0.0913]
[1758134681533,3.2078,4441.4,4440.3,3.2078]
[1758134681740,3.2078,4441.4,4440.2,0.288]
[1758134681932,0.288,4441.5,4440.0,0.0913]
[1758134681933,3.2078,4440.9,4440.0,0.0913]
[1758134682235,0.40516,4440.4,4440.0,0.0913]
[1758134682441,0.40519,4440.2,4440.0,0.0913]
[1758134682641,0.40516,4440.4,4440.0,0.0913]
[1758134682837,3.2078,4440.9,4439.8,0.0064]
[1758134683038,0.40521,4440.0,4439.8,0.0064]
[1758134683341,3.2078,4440.3,4439.5,0.288]
[1758134683529,3.2078,4440.3,4439.4,0.40525]
[1758134683734,3.61297,4440.3,4439.5,0.288]
[1758134683935,0.40519,4440.2,4439.5,0.40524]
[1758134684241,3.2078,4441.0,4440.0,3.2078]
[1758134684439,0.40505,4441.6,4440.7,3.2078]
[1758134684737,0.40509,4441.3,4440.8,0.287]
[1758134685040,3.61285,4441.7,4440.7,3.2078]
[1758134685234,0.40506,4441.6,4440.7,3.2078]
[1758134685541,3.2078,4441.7,4440.7,3.4948]
[1758134685739,3.2078,4441.7,4441.3,0.40508]
[1758134686036,1.01266,4441.6,4440.0,0.18259413]
[1758134686239,3.2078,4440.9,4438.7,32.412]
[1758134686536,3.2078,4442.0,4440.8,3.2078]
[1758134686738,3.2078,4442.0,4440.9,0.288]
[1758134686944,3.2078,4442.0,4441.1,1.01273]
[1758134687140,3.2078,4442.0,4441.8,0.40503]
[1758134687339,3.2078,4442.5,4441.2,0.66780734]
[1758134687541,3.2078,4441.7,4439.7,0.288]
[1758134687749,3.2078,4441.0,4439.8,3.2078]
[1758134688040,3.2078,4441.0,4439.8,0.40522]
[1758134688237,3.2078,4440.3,4439.4,0.40525]
[1758134688435,3.2078,4439.7,4439.3,0.288]
[1758134688934,3.2078,4440.2,4439.6,0.40523]
[1758134689143,3.2078,4440.2,4439.5,0.287]
[1758134689442,3.2078,4440.2,4439.6,0.40523]
[1758134689745,3.2078,4440.2,4439.7,0.40522]
[1758134689936,3.2078,4440.2,4439.6,0.287]
[1758134690129,3.2078,4440.8,4439.6,0.287]
[1758134690330,3.2078,4441.3,4440.3,0.40517]
[1758134690536,0.4051,4441.2,4439.9,0.287]
[1758134690741,3.2078,4440.8,4439.2,3.38509736]
[1758134690935,3.2078,4440.8,4439.3,0.287]
[1758134691240,3.2078,4440.8,4440.1,0.40519]
[1758134691436,3.2078,4440.8,4439.8,0.69321]
[1758134691640,0.40515,4440.6,4439.9,0.4052]
[1758134691941,3.2078,4440.8,4439.7,3.2078]
[1758134692142,3.2078,4440.8,4440.1,0.40519]
[1758134692338,3.2078,4440.8,4439.4,1.30114]
[1758134692339,3.2078,4440.8,4439.8,3.2078]
[1758134692539,3.2078,4441.4,4440.3,3.2078]
[1758134692738,3.2078,4441.4,4440.8,0.40512]
[1758134692937,3.2078,4441.4,4440.9,0.40511]
[1758134693143,3.2078,4441.9,4440.8,4.22062]
[1758134693341,3.2078,4441.9,4441.7,0.40504]
[1758134693638,3.2078,4441.9,4440.6,0.0908]
[1758134693639,3.4948,4443.1,4442.1,0.405]
[1758134693838,3.4948,4443.1,4440.6,0.0908]
[1758134693839,0.40494,4442.9,4441.8,0.287]
[1758134694038,3.2078,4443.1,4442.2,0.0067]
[1758134694544,3.2078,4443.6,4442.5,3.2078]
[1758134694732,0.40488,4443.5,4442.5,3.2078]
[1758134694932,3.2078,4443.6,4442.2,0.0067]
[1758134695136,3.2078,4445.4,4443.1,3.2078]
[1758134695338,10.11229,4447.9,4444.0,3.2078]
[1758134695339,3.2078,4445.3,4444.0,3.2078]
[1758134695541,3.2078,4445.3,4444.8,0.40476]
[1758134695741,3.2078,4445.3,4444.1,0.287]
[1758134695940,3.2078,4445.3,4444.2,1.01205]
[1758134696145,3.2078,4445.3,4444.5,3.2078]
[1758134696443,3.2078,4445.8,4444.6,0.287]
[1758134696948,3.2078,4446.3,4445.6,0.40468]
[1758134697141,3.2078,4446.3,4445.9,0.40466]
[1758134697349,3.2078,4446.3,4445.7,3.2078]
[1758134697646,3.2078,4446.3,4445.4,0.287]
[1758134697841,3.2078,4445.8,4444.3,0.40481]
[1758134698045,3.2078,4445.1,4444.2,3.2078]
[1758134698246,3.2078,4445.1,4444.5,0.40478]
[1758134698449,1.2078,4445.1,4444.2,3.2078]
[1758134698647,1.2078,4445.1,4444.3,0.286]
[1758134699049,1.2078,4445.1,4443.7,3.2078]
[1758134699252,3.2078,4444.4,4443.8,0.286]
[1758134699550,3.2078,4445.0,4443.7,3.2078]
[1758134699747,3.2078,4445.0,4443.7,3.61266]
[1758134699951,3.2078,4445.0,4443.4,0.286]
[1758134700148,3.2078,4444.4,4443.3,0.286]
[1758134700352,32.413,4447.3,4443.3,0.286]
[1758134700353,3.2078,4445.9,4444.6,0.40478]
[1758134700546,3.2078,4446.6,4445.6,3.2078]
[1758134700746,3.2078,4447.1,4446.2,3.2078]
[1758134700948,3.2078,4447.1,4444.6,3.2078]
[1758134701156,3.2078,4446.5,4444.6,3.2078]
[1758134701447,3.2078,4446.0,4444.6,3.2078]
[1758134701749,3.2078,4446.0,4443.5,0.38670644]
[1758134701750,0.287,4446.5,4445.1,3.2078]
[1758134701945,3.2078,4445.9,4444.5,3.2078]
[1758134702349,0.288,4445.8,4444.5,3.2078]
[1758134702554,3.2078,4445.6,4444.0,3.2078]
[1758134702758,3.2078,4445.1,4444.0,3.2078]
[1758134702954,3.2078,4444.6,4443.4,3.2078]
[1758134703149,3.4958,4445.1,4443.4,3.61269]
[1758134703345,3.2078,4445.1,4443.9,3.61264]
[1758134703549,0.288,4445.6,4444.4,3.2078]
[1758134703849,0.288,4445.6,4445.0,3.2078]
[1758134704157,0.288,4445.6,4444.4,3.2078]
[1758134704653,3.4958,4445.6,4443.9,3.2078]
[1758134704852,3.2078,4445.1,4443.4,0.40489]
[1758134705158,3.2078,4444.6,4442.8,3.2078]
[1758134705450,0.287,4444.5,4443.5,3.2078]
[1758134706147,3.2078,4444.6,4443.0,3.2078]
[1758134706547,3.2078,4443.5,4442.0,3.2078]
[1758134706755,3.2078,4443.0,4441.5,3.2078]
[1758134707150,3.2078,4443.0,4441.3,3.2078]
[1758134707151,3.2078,4442.8,4441.3,3.2078]
[1758134707351,3.2078,4442.8,4441.1,0.286]
[1758134707557,0.286,4442.7,4441.2,3.2078]
[1758134708057,3.2078,4442.8,4442.2,3.2078]
[1758134708254,3.2078,4443.8,4442.7,3.2078]
[1758134708458,0.286,4443.8,4443.2,3.2078]
[1758134708652,0.286,4443.8,4442.7,3.2078]
[1758134708653,3.4938,4443.8,4442.7,3.2078]
[1758134709057,3.4938,4443.8,4442.8,0.18]
[1758134709459,7.71886,4443.8,4442.8,0.18]
[1758134709658,3.2078,4443.0,4442.8,0.18]
[1758134709853,3.4938,4443.0,4442.8,0.18]
[1758134710057,4.0,4442.9,4442.1,0.0225]
[1758134710255,4.0,4442.9,4441.4,3.2078]
[1758134710256,3.2078,4442.5,4441.4,3.2078]
[1758134710456,3.2078,4442.0,4441.4,3.2078]
[1758134710657,0.286,4441.9,4441.4,3.2078]
[1758134710853,3.2078,4441.5,4439.9,3.4938]
[1758134711060,1.78180536,4445.6,4438.8,32.408]
[1758134711061,3.2078,4440.3,4439.6,0.17999459]
[1758134711355,3.2078,4439.8,4438.6,3.2078]
[1758134712157,0.286,4440.0,4438.6,3.2078]
[1758134712357,3.2078,4438.7,4437.0,32.409]
[1758134712559,3.2078,4438.7,4436.9,3.2078]
[1758134712751,3.2078,4438.7,4437.4,3.2078]
[1758134713150,3.2078,4437.6,4437.5,0.1802]
[1758134713357,3.2078,4437.6,4437.5,0.1947]
[1758134714865,3.4938,4437.6,4437.5,0.1947]
[1758134715058,3.2078,4438.1,4437.5,0.1947]
[1758134715258,3.2078,4437.6,4436.1,0.17756927]
[1758134715460,3.2078,4437.1,4435.4,3.2078]
[1758134715663,3.2078,4436.1,4434.8,3.2078]
[1758134715862,3.2078,4435.4,4433.3,0.287]
[1758134716062,3.4948,4435.4,4433.7,3.2078]
[1758134716261,3.2078,4435.4,4433.9,0.03924786]
[1758134716461,3.2078,4435.4,4434.9,0.40566]
[1758134716659,3.2078,4435.4,4435.3,4.4509227]
[1758134716965,0.286,4435.8,4435.3,4.4509227]
[1758134717160,3.4938,4435.7,4435.3,0.4509227]
[1758134717366,3.2078,4435.7,4435.3,0.4509227]
[1758134717666,0.288,4435.6,4435.3,2.27e-05]
[1758134717864,3.2078,4435.7,4435.3,2.27e-05]
[1758134718262,3.2078,4435.7,4435.3,0.4056427]
[1758134718462,3.2078,4436.3,4435.5,3.2078]
[1758134719063,3.2078,4437.1,4436.2,3.2078]
[1758134719459,3.2078,4437.6,4436.8,3.2078]
[1758134719655,3.2078,4438.1,4436.8,3.2078]
[1758134719858,0.288,4438.1,4437.5,3.2078]
[1758134720062,0.288,4438.1,4436.5,0.17838581]
[1758134720063,0.288,4438.0,4436.9,3.2078]
[1758134720365,3.2078,4437.9,4436.7,3.2078]
[1758134720558,3.2078,4437.4,4436.1,3.2078]
[1758134720759,3.2078,4437.4,4435.2,0.00601902]
[1758134720760,0.288,4437.3,4435.6,3.2078]
[1758134721063,3.2078,4437.3,4436.1,3.2078]
[1758134721258,0.288,4437.2,4436.3,0.40553]
[1758134721460,3.2078,4437.9,4436.7,3.6133]
[1758134721655,3.2078,4437.9,4436.7,3.2078]
[1758134721863,3.2078,4441.0,4437.8,3.2078]
[1758134722065,3.2078,4441.0,4439.9,3.2078]
[1758134722261,3.2078,4441.0,4437.9,0.288]
[1758134722262,0.289,4440.9,4439.8,3.2078]
[1758134722463,3.2078,4440.0,4438.7,3.2078]
[1758134722867,3.2078,4440.0,4438.7,3.61311]
[1758134723058,0.289,4439.9,4438.7,3.2078]
[1758134723256,3.2078,4440.5,4439.7,3.2078]
[1758134723459,0.289,4440.4,4439.3,0.40525]
[1758134723657,3.2078,4440.5,4439.4,0.40525]
[1758134723865,40.8,4442.1,4437.6,3.2078]
[1758134723866,3.2078,4439.5,4437.6,3.2078]
[1758134724060,0.289,4439.4,4437.6,3.2078]
[1758134724260,3.2078,4438.8,4437.6,3.2078]
[1758134724461,0.289,4438.7,4437.2,0.289]
[1758134724656,3.2078,4438.3,4437.6,3.2078]
[1758134725066,3.2078,4438.3,4437.2,0.289]
[1758134725272,3.2078,4438.3,4437.2,3.4968]
[1758134725468,0.289,4438.2,4437.2,3.4968]
[1758134725768,0.289,4438.2,4436.8,3.2078]
[1758134725962,3.2078,4437.7,4436.8,3.2078]
[1758134726162,0.289,4437.6,4436.8,3.2078]
[1758134726359,0.289,4437.6,4436.2,3.2078]
[1758134726561,0.289,4437.6,4436.0,0.40556]
[1758134726562,3.2078,4437.7,4436.7,3.2078]
[1758134726766,0.288,4437.8,4437.0,0.40547]